[Event "9th Porticcio Open 2024"]
[Site "Porticcio"]
[Date "2024.07.01"]
[Round "4.2"]
[White "Fedorchuk, Sergey A."]
[Black "Rakotomaharo, Fy Antenaina"]
[Result "1-0"]
[ECO "B40"]
[WhiteElo "2546"]
[BlackElo "2448"]
[Annotator "TA"]
[PlyCount "70"]
[EventDate "2024.07.01"]
[EventType "swiss"]
[EventCountry "FRA"]
[SourceTitle "playchess.com"]
[Source "ChessBase"]
[SourceQuality "1"]
[TimeControl "5400+30"]

{[%evp 9,70,7,14,0,0,-26,-15,-7,-15,-10,-13,-8,0,-5,52,34,47,46,41,38,41,40,133,138,129,75,76,75,112,102,95,99,130,116,123,127,123,106,286,288,277,283,271,246,364,274,473,473,466,462,490,486,561,517,559,552,553,518,561,495,554,535,440]} 1. e4 {[%emt 0:00:04]} c5 {[%emt 0:00:22]} 2. Nf3 {[%emt 0:00:33]} e6 {[%emt 0:00:14][%cal Be7e6,Be6e5][%mdl 32]} 3. d4 {[%emt 0:05:15]} cxd4 {[%emt 0:00:08]} 4. Nxd4 {[%emt 0:00:06]} Nf6 {[%emt 0:00:21]} 5. Nd2 {[%emt 0:03:35]} e5 {[%emt 0:16:32]} 6. N4f3 {[%emt 0:05:18][%cal Bd4f3,Bf3e5,Be5d3,Bd3f4][%mdl 32]} Nc6 {[%emt 0:01:32]} 7. Bb5 {[%emt 0:06:59]} Bc5 {[%emt 0:15:02][%cal Oc5f2] aiming for ...Bxf2+!} 8. O-O {[%emt 0:04:07] The position is equal.} O-O {[%emt 0:03:38]} 9. Bxc6 {[%emt 0:17:35]} dxc6 {[%emt 0:01:10]} 10. Nxe5 {[%emt 0:00:07]} Re8 {[%emt 0:00:19]} 11. Nd3 {[%emt 0:00:38] A dynamic duo of knights.} Bg4 {[%emt 0:01:07]} (11... Bd4 $11) 12. Qe1 $14 {[%emt 0:01:59]} Bb6 {[%emt 0:00:26]} 13. Kh1 $1 {[%emt 0:00:56]} Nxe4 {[%emt 0:09:42]} 14. Nxe4 {[%emt 0:01:35]} f5 {[%emt 0:00:04] Against f3} 15. Bg5 {[%emt 0:15:44][%cal Bc1g5,Bg5e7,Be7b4][%mdl 32]} Qd5 {[%emt 0:07:08]} ({Black should try} 15... Qd4 $14 16. Nf6+ gxf6) 16. Nf4 $1 $16 {[%emt 0:06:44]} Qxe4 {[%emt 0:10:32]} 17. f3 {[%emt 0:00:33]} (17. Qc3 $142 Qa4 18. f3) 17... Qxe1 {[%emt 0:00:36]} (17... Qxc2 $2 18. Qh4 $18) 18. Raxe1 {[%emt 0:00:06]} h6 {[%emt 0:00:10]} 19. Be7 $36 {[%emt 0:02:15][%mdl 2048] White is on the roll.} Kf7 {[%emt 0:01:28]} 20. Bb4 $1 {[%emt 0:05:14]} g5 {[%emt 0:02:51] [#]} 21. Rxe8 $1 {[%emt 0:02:00]} Rxe8 {[%emt 0:00:40]} 22. fxg4 {[%emt 0:00:28]} gxf4 {[%emt 0:00:10]} 23. Rxf4 {[%emt 0:00:11]} ({Much weaker is} 23. gxf5 $6 Bc7 $11) 23... Re4 $2 {[%emt 0:03:23] [#] Loses the game.} (23... Re2 $16 {is a better defense.}) 24. Rxe4 $1 $18 {[%emt 0:05:09]} (24. Rxf5+ Ke8 25. Bd2 Re2 $18) 24... fxe4 {[%emt 0:00:05][%mdl 4096] Endgame. KB-KB} 25. g3 {[%emt 0:00:04]} Kg6 {[%emt 0:07:21]} 26. Kg2 {[%emt 0:00:42]} a5 {[%emt 0:00:15]} (26... Be3 {might work better.} 27. b3 a6) 27. Bd2 {[%emt 0:00:58]} a4 $2 {[%emt 0:00:06]} (27... h5 28. gxh5+ Kxh5) 28. Bf4 {[%emt 0:00:47] White is clearly winning.} Bd4 {[%emt 0:00:17]} 29. b3 {[%emt 0:00:24]} axb3 {[%emt 0:00:06]} 30. axb3 {[%emt 0:00:09]} b5 {[%emt 0:00:15]} 31. Kf1 {[%emt 0:00:23]} Bc5 {[%emt 0:01:45]} 32. Ke2 {[%emt 0:00:17]} Bd4 {[%emt 0:00:07]} 33. Be3 {[%emt 0:01:51]} Bb2 {[%emt 0:01:04]} 34. Kf2 {[%emt 0:04:52]} Bc3 {[%emt 0:02:33]} 35. Bc5 {[%emt 0:02:40]} Kg5 {[%emt 0:00:13] Weighted Error Value: White=0.06 (flawless) /Black=0.37.  Loses game:     	---       	Black=1      Mistake:       	White=1     	Black=4      Inaccurate:     	White=1     	Black=2      OK:         	White=14    	Black=8      Best:        	White=2     	Black=2      Strong:       	White=5     	---} 1-0

[Event "9th Porticcio Open 2024"]
[Site "Porticcio"]
[Date "2024.07.01"]
[Round "4.4"]
[White "Batsiashvili, Nino"]
[Black "Roux, Baptiste"]
[Result "1-0"]
[ECO "D25"]
[WhiteElo "2450"]
[BlackElo "2352"]
[Annotator "TA"]
[PlyCount "109"]
[EventDate "2024.07.01"]
[EventType "swiss"]
[EventCountry "FRA"]
[SourceTitle "playchess.com"]
[Source "ChessBase"]
[SourceQuality "1"]
[TimeControl "5400+30"]

{[%evp 9,109,16,45,33,48,27,28,27,30,20,28,26,37,17,17,0,0,0,0,-22,-18,-42,-34,-27,-35,-29,-30,-37,-38,-47,-32,-33,0,0,79,78,82,85,157,137,120,108,141,113,112,104,114,125,112,116,106,98,87,108,114,118,130,125,206,193,194,196,243,230,230,231,223,230,224,197,199,162,205,200,185,183,163,177,173,166,135,38,139,150,330,79,297,306,580,539,572,576,501,885,1287,909,1214,1110,901,1321,1123,1084]} 1. d4 {[%emt 0:00:02]} d5 {[%emt 0:01:51]} 2. c4 {[%emt 0:00:04]} dxc4 {[%emt 0:00:21]} 3. Nf3 {[%emt 0:00:04]} Nf6 {[%emt 0:00:06]} 4. e3 {[%emt 0:00:04]} a6 {[%emt 0:01:04]} 5. Bxc4 {[%emt 0:00:15]} b5 {[%emt 0:00:06]} 6. Be2 {[%emt 0:01:49]} Bb7 {[%emt 0:01:12][%cal Oc7c5]} 7. O-O {[%emt 0:00:27]} e6 {[%emt 0:00:27]} 8. a4 {[%emt 0:00:39] White has an edge.} b4 {[%emt 0:00:30]} 9. Nbd2 {[%emt 0:05:43]} c5 {[%emt 0:04:52]} 10. Nc4 {[%emt 0:02:12]} Nbd7 {[%emt 0:04:17]} 11. a5 {[%emt 0:05:12]} Be7 {[%emt 0:02:42]} 12. dxc5 {[%emt 0:02:29]} Nxc5 {[%emt 0:03:33]} 13. Bd2 {[%emt 0:01:32]} Nd5 {[%emt 0:09:02]} 14. Qe1 {[%emt 0:07:09]} Rb8 {[%emt 0:08:23]} 15. Nd4 {[%emt 0:07:01][%cal Of2f3]} O-O {[%emt 0:04:50]} 16. Rd1 {[%emt 0:00:13][%cal Of2f3]} Qc7 {[%emt 0:05:19]} 17. f3 {[%emt 0:05:30][%cal Oe1g3]} Bf6 {[%emt 0:04:05]} 18. Qg3 {[%emt 0:03:15]} Qxg3 {[%emt 0:05:25]} 19. hxg3 {[%emt 0:00:04]} Rfd8 {[%emt 0:05:43]} 20. Bc1 {[%emt 0:01:33][%cal Bd2c1,Bc1e3,Be3b6][%mdl 32]} e5 {[%emt 0:03:21]} 21. Nf5 {[%emt 0:01:15]} b3 {[%emt 0:06:27]} (21... e4 $11 {keeps the balance.}) 22. e4 $16 {[%emt 0:02:22]} Nb4 {[%emt 0:00:54]} 23. Be3 $36 {[%emt 0:00:12][%mdl 2048] Keeping Black busy.} Ne6 {[%emt 0:04:59]} ({Black should play} 23... Na4) 24. Bb6 {[%emt 0:02:57]} Rxd1 {[%emt 0:01:30]} 25. Bxd1 {[%emt 0:03:02]} Nc2 {[%emt 0:07:02]} 26. Bxc2 {[%emt 0:02:30]} bxc2 {[%emt 0:00:02] [#]} 27. Rc1 $1 {[%emt 0:00:01]} Bc6 {[%emt 0:03:09]} 28. Rxc2 {[%emt 0:00:34]} Ba4 {[%emt 0:00:02]} 29. Rd2 {[%emt 0:02:12]} Rc8 {[%emt 0:00:31]} 30. Nfd6 {[%emt 0:02:08] White has more active pieces. A dynamic duo of knights.} Rc6 {[%emt 0:00:31]} 31. Rd3 {[%emt 0:01:49]} Be7 {[%emt 0:01:04]} 32. b3 {[%emt 0:02:52]} Bxd6 {[%emt 0:05:35]} 33. Nxd6 {[%emt 0:02:14]} Nd4 {[%emt 0:01:05]} 34. bxa4 $18 {[%emt 0:06:51]} Rxd6 {[%emt 0:00:07][%mdl 4096] Endgame. KRB-KRN} 35. Kf2 {[%emt 0:00:15] Against Ne2} f6 {[%emt 0:01:51]} (35... h5 $142 36. Rd2 Nf5) 36. Bxd4 {[%emt 0:00:24]} exd4 {[%emt 0:00:31] KR-KR} 37. Ke2 {[%emt 0:00:08]} Kf7 {[%emt 0:01:22]} 38. Rb3 {[%emt 0:00:08]} Rc6 {[%emt 0:01:17]} 39. Kd3 {[%emt 0:00:58] [#] Prevents Rc2. Black must now prevent Rb7+.} Rc5 {[%emt 0:00:17]} 40. Kxd4 {[%emt 0:01:11]} Rxa5 {[%emt 0:00:02]} 41. Rb4 {[%emt 0:00:06]} Kg6 {[%emt 0:02:13]} 42. g4 {[%emt 0:01:05]} h5 {[%emt 0:00:43]} 43. gxh5+ {[%emt 0:00:14]} Kxh5 {[%emt 0:00:05]} 44. Rc4 {[%emt 0:00:23]} Kh4 {[%emt 0:01:30]} 45. g4 {[%emt 0:04:37]} (45. Rc7 $16 Rg5 (45... Rxa4+ 46. Ke3 $11) 46. f4 Rxg2 47. f5) 45... Kg3 {[%emt 0:01:15]} ({Better is} 45... Kh3 $1 $14) 46. Ke3 $16 {[%emt 0:00:02]} Kg2 $2 {[%emt 0:00:40]} (46... g5 $16 47. Rc6 Rxa4) 47. Kf4 $2 {[%emt 0:05:51]} (47. f4 $18) 47... Kh3 $2 {[%emt 0:00:25]} (47... Kf1 $16 {is a better defense.}) 48. Rd4 $18 {[%emt 0:01:20]} Rc5 $2 {[%emt 0:01:19]} (48... Kg2 {keeps fighting.} 49. Rd2+ Kf1) 49. Rd5 {[%emt 0:00:14] White is clearly winning.} Rc3 {[%emt 0:00:32]} 50. g5 {[%emt 0:00:15] Hoping for gxf6.} Kg2 {[%emt 0:00:17]} 51. Rd2+ {[%emt 0:00:06]} Kh3 {[%emt 0:00:06]} 52. gxf6 {[%emt 0:00:21]} gxf6 {[%emt 0:00:05]} 53. Rd6 {[%emt 0:00:09]} Kg2 {[%emt 0:00:17]} 54. Rxf6 {[%emt 0:00:13]} (54. Rxa6 Rxf3+ 55. Kg4 Kf2 $18) 54... Rxf3+ {[%emt 0:00:04]} 55. Ke5 {[%emt 0:00:04] Weighted Error Value: White=0.19 (very precise) /Black=0.30.  Loses game:     	---       	Black=2      Missed win:     	White=1     	---        Mistake:       	White=1     	Black=6      Inaccurate:     	---       	Black=3      OK:         	White=19    	Black=22     Best:        	White=4     	Black=1      Strong:       	White=1     	---} 1-0

[Event "9th Porticcio Open 2024"]
[Site "Porticcio"]
[Date "2024.07.01"]
[Round "4.5"]
[White "Yankelevich, Lev"]
[Black "Malassagne, Raphael"]
[Result "1-0"]
[ECO "A57"]
[WhiteElo "2416"]
[BlackElo "2259"]
[Annotator "TA"]
[PlyCount "99"]
[EventDate "2024.07.01"]
[EventType "swiss"]
[EventCountry "FRA"]
[SourceTitle "playchess.com"]
[Source "ChessBase"]
[SourceQuality "1"]
[TimeControl "5400+30"]

{[%evp 16,99,48,32,25,15,32,0,25,33,41,-48,15,27,28,0,66,50,55,48,47,48,105,100,158,97,132,121,131,128,106,112,150,128,131,118,142,152,156,160,171,145,156,157,198,196,187,158,158,158,203,189,202,96,140,83,83,82,183,120,185,176,160,152,216,210,216,216,220,216,223,223,222,222,222,222,215,199,336,332,336,342,337,316,466,446]} 1. d4 {[%emt 0:00:03]} Nf6 {[%emt 0:00:06]} 2. c4 {[%emt 0:00:10]} c5 {[%emt 0:00:06]} 3. d5 {[%emt 0:01:11]} b5 {[%emt 0:00:07]} 4. cxb5 {[%emt 0:00:43]} a6 {[%emt 0:00:10]} 5. e3 {[%emt 0:00:06]} Bb7 {[%emt 0:00:47]} 6. Nc3 {[%emt 0:00:28]} Qa5 {[%emt 0:00:16]} 7. Bd2 {[%emt 0:08:50]} axb5 {[%emt 0:01:28]} 8. Bxb5 {[%emt 0:02:54]} Qb6 {[%emt 0:00:05]} 9. Nf3 {[%emt 0:10:26][%cal Bg1f3,Bf3e5,Be5d3][%mdl 32] Strongly threatening Qb3.} Nxd5 {[%emt 0:08:50]} 10. a4 {[%emt 0:01:00]} e6 {[%emt 0:13:57]} 11. Ne5 {[%emt 0:11:05]} Be7 {[%emt 0:07:14] The position is equal.} 12. O-O {[%emt 0:02:33]} O-O {[%emt 0:09:40]} 13. Qe2 {[%emt 0:06:22]} (13. Bxd7 $2 Qc7 14. Bxe6 (14. Nxd5 $2 Bxd5 15. Bb5 Qxe5 $19) 14... fxe6 (14... Qxe5 $2 15. Bxd5 Bxd5 16. f4 $19) 15. Nxd5 exd5 $19) (13. Nxd7 $14 Nxd7 14. Bxd7) 13... Qc7 {[%emt 0:20:17]} (13... Nb4 $15) 14. Nxd5 $11 {[%emt 0:03:16]} exd5 {[%emt 0:01:56]} 15. Nd3 {[%emt 0:04:24]} Bc6 {[%emt 0:03:52]} ({Black should try} 15... Bd6 $11) 16. Bc3 {[%emt 0:03:51]} Bd6 {[%emt 0:03:34]} 17. Qh5 {[%emt 0:05:33]} Na6 {[%emt 0:04:46]} 18. Ne5 $40 {[%emt 0:02:57][%mdl 128] White mounts an attack.} Bxe5 {[%emt 0:05:08]} (18... Nb4 $14) 19. Bxe5 $16 {[%emt 0:01:49]} d6 {[%emt 0:00:06]} (19... Qd8 $142) 20. Bc3 {[%emt 0:06:03]} (20. Bxg7 $142 $1 {Bf6 would kill now.} Kxg7 21. Qg5+ Kh8 22. Qf6+ Kg8 23. Qg5+ Kh8 24. Qf6+ Kg8 25. e4) 20... Qd7 {[%emt 0:02:21]} 21. Qg5 {[%emt 0:03:48][%csl Gc3][%cal Rg5g7] White has more active pieces.} f6 {[%emt 0:01:01] [#]} 22. Qxd5+ {[%emt 0:00:08][%mdl 512]} Bxd5 {[%emt 0:00:16]} 23. Bxd7 {[%emt 0:00:03]} Rfd8 {[%emt 0:01:25]} 24. Bb5 {[%emt 0:02:02]} Nc7 {[%emt 0:00:01]} 25. Be2 {[%emt 0:00:38]} Bb3 {[%emt 0:00:04]} 26. a5 {[%emt 0:01:00]} d5 {[%emt 0:00:04]} 27. Ra3 {[%emt 0:01:04]} c4 {[%emt 0:00:09]} 28. Rc1 {[%emt 0:03:23]} Kf7 {[%emt 0:01:24]} 29. Bd4 {[%emt 0:01:39]} Ne6 {[%emt 0:01:07] [#]} 30. Bb6 $1 {[%emt 0:00:21] A strong pair of Bishops.} Rd6 {[%emt 0:00:04]} 31. Bd1 {[%emt 0:02:54]} Bxd1 {[%emt 0:01:52]} 32. Rxd1 {[%emt 0:00:02]} f5 {[%emt 0:00:12][%cal Bf6f5,Bf5f4][%mdl 32]} 33. Rc3 {[%emt 0:00:51]} Rc8 {[%emt 0:00:54]} 34. f3 {[%emt 0:01:50]} (34. b4 $18 {is more deadly.}) 34... f4 {[%emt 0:00:52]} 35. e4 {[%emt 0:01:16]} ({White should play} 35. b3 {Hoping for e4.} fxe3 36. Bxe3) 35... d4 {[%emt 0:00:13]} 36. Ra3 {[%emt 0:00:12]} Ra8 {[%emt 0:01:20]} (36... Nc7 $16) 37. Raa1 {[%emt 0:00:54]} (37. Kf1 $18) 37... d3 {[%emt 0:00:40]} (37... g5 $16 {was necessary.}) 38. Rac1 $18 {[%emt 0:00:20]} Rc8 {[%emt 0:01:17]} 39. Rc3 {[%emt 0:01:39]} Nd4 {[%emt 0:02:47] [#]} (39... Rcc6 $16 40. e5 (40. b3 cxb3 41. Rxb3 d2 $16) 40... Rd5) 40. Bxd4 $1 {[%emt 0:01:08]} Rxd4 {[%emt 0:00:06][%mdl 4096] Endgame. KRR-KRR} 41. b3 {[%emt 0:00:03][%cal Bb2b3,Bb3c4,Bc4c5][%mdl 32]} Ra8 {[%emt 0:00:22]} 42. Rxc4 {[%emt 0:00:59]} ({But not} 42. bxc4 Rxa5 43. c5 (43. Rcxd3 Rxc4 44. Rd7+ Kg8 $16) (43. Rdxd3 Ra1+ 44. Kf2 Ra2+ 45. Kf1 Ra1+ 46. Ke2 Ra2+ 47. Kd1 Rxd3+ 48. Rxd3 Rxg2 $16) 43... Rb4 $16) 42... Rxc4 {[%emt 0:00:05]} 43. bxc4 {[%emt 0:00:01]} Rxa5 {[%emt 0:00:05]} 44. Rxd3 {[%emt 0:00:02] KR-KR} Ra1+ {[%emt 0:00:07]} 45. Kf2 {[%emt 0:00:19]} Ra2+ {[%emt 0:00:27]} 46. Kf1 {[%emt 0:00:51]} Ke6 {[%emt 0:00:11]} (46... Rc2 $142 47. Rd5 Rxc4) 47. c5 {[%emt 0:02:42]} Rc2 {[%emt 0:00:13]} 48. Rd5 {[%emt 0:01:56]} g6 {[%emt 0:00:26]} 49. h4 {[%emt 0:00:08]} Rc1+ {[%emt 0:00:15]} (49... Kf6 $142 50. Kg1 Kg7) 50. Ke2 {[%emt 0:00:03] Weighted Error Value: White=0.17 (very precise) /Black=0.31.  Mistake:       	White=5     	Black=9      Inaccurate:     	White=2     	Black=3      OK:         	White=16    	Black=10     Best:        	White=5     	Black=1      Strong:       	White=1     	---        Brilliant:      	White=1     	---} 1-0

[Event "9th Porticcio Open 2024"]
[Site "Porticcio"]
[Date "2024.07.01"]
[Round "4.6"]
[White "Terrieux, Kevin"]
[Black "Pak, Alexander"]
[Result "1/2-1/2"]
[ECO "D10"]
[WhiteElo "2408"]
[BlackElo "2200"]
[Annotator "TA"]
[PlyCount "71"]
[EventDate "2024.07.01"]
[EventType "swiss"]
[EventCountry "FRA"]
[SourceTitle "playchess.com"]
[Source "ChessBase"]
[SourceQuality "1"]
[TimeControl "5400+30"]

{[%evp 9,71,10,13,12,0,11,4,8,30,8,9,4,4,9,18,8,10,0,40,-9,-11,-19,-25,-25,0,-1,0,0,10,5,11,-16,-14,-19,-14,-17,-22,-9,-4,-12,0,-5,0,-6,-13,-10,0,0,0,-4,0,0,0,0,0,0,0,0,0,0,0,0,0,0]} 1. d4 {[%emt 0:03:22]} d5 {[%emt 0:00:08]} 2. c4 {[%emt 0:00:08]} c6 {[%emt 0:00:04]} 3. cxd5 {[%emt 0:00:05]} cxd5 {[%emt 0:00:05]} 4. Bg5 {[%emt 0:00:06]} f6 {[%emt 0:00:43]} 5. Bd2 {[%emt 0:00:12]} e5 {[%emt 0:00:48] [#]} 6. e4 $1 {[%emt 0:00:54]} Nc6 {[%emt 0:08:52]} (6... dxe4 7. dxe5) 7. dxe5 $1 {[%emt 0:06:22]} dxe4 {[%emt 0:12:12]} 8. Nc3 {[%emt 0:07:12]} Nxe5 {[%emt 0:06:30]} 9. Qa4+ {[%emt 0:04:20]} Bd7 {[%emt 0:01:31]} 10. Qxe4 {[%emt 0:01:54][%cal Of2f4] Black must now prevent f4!} Bc6 $1 {[%emt 0:02:16]} 11. Qe2 {[%emt 0:09:28]} Qe7 {[%emt 0:06:40] ...Nd3+ would now be deadly.} 12. O-O-O $1 {[%emt 0:02:18]} O-O-O {[%emt 0:00:46] Hoping for ...Nd3+.} 13. Be3 {[%emt 0:05:38]} Kb8 {[%emt 0:04:05]} 14. Rxd8+ {[%emt 0:06:48]} (14. Nf3 $14 {might be stronger.}) 14... Qxd8 $11 {[%emt 0:00:09]} 15. f4 {[%emt 0:00:05]} Nd7 {[%emt 0:03:00][%cal Be5d7,Bd7c5,Bc5e6,Be6d4][%mdl 32]} 16. Nf3 {[%emt 0:00:48]} Bc5 {[%emt 0:05:33]} 17. Nd4 {[%emt 0:04:05] The position is equal.} Bxd4 {[%emt 0:00:03]} 18. Bxd4 {[%emt 0:00:06]} Nh6 {[%emt 0:01:39]} 19. Qf2 {[%emt 0:02:32]} b6 {[%emt 0:10:14]} 20. Bd3 {[%emt 0:03:39] [#]} Nc5 $1 {[%emt 0:10:16]} 21. Be2 {[%emt 0:26:41] [#] This pair of bishops is nice.} (21. Bc4 Ne4) 21... Ng4 $1 {[%emt 0:05:34]} 22. Qg1 {[%emt 0:00:43]} Ne6 {[%emt 0:01:37][%csl LRd4,LRf4]} 23. Bxg4 {[%emt 0:09:04]} Nxd4 {[%emt 0:00:22]} 24. Qf2 {[%emt 0:00:31] aiming for Rd1.} h5 {[%emt 0:04:38]} 25. Rd1 {[%emt 0:01:39]} hxg4 {[%emt 0:00:23]} 26. Rxd4 {[%emt 0:00:02]} Qc7 {[%emt 0:03:49]} 27. g3 {[%emt 0:00:19]} Kb7 {[%emt 0:03:28]} 28. Rd2 {[%emt 0:00:05]} Re8 {[%emt 0:01:04]} 29. Re2 {[%emt 0:00:16]} Rxe2 {[%emt 0:01:40]} 30. Qxe2 {[%emt 0:00:24][%mdl 4096] Endgame. KQB-KQN} Bf3 {[%emt 0:00:15]} 31. Qd3 {[%emt 0:00:44]} Qc5 {[%emt 0:01:54]} 32. Qd7+ {[%emt 0:00:25]} Ka6 {[%emt 0:00:31]} 33. Qa4+ {[%emt 0:00:41]} Kb7 {[%emt 0:00:08]} 34. Qd7+ {[%emt 0:00:13]} Ka6 {[%emt 0:00:08]} 35. Qa4+ {[%emt 0:00:10]} Kb7 {[%emt 0:00:08]} 36. Qd7+ {[%emt 0:06:31] A balanced but interesting game.   Weighted Error Value: White=0.06 (flawless) /Black=0.05 (flawless) .  Mistake:       	White=1     	---        Inaccurate:     	White=1     	Black=1      OK:         	White=14    	Black=12     Best:        	---       	Black=3      Strong:       	White=2     	Black=1      Brilliant:      	---       	Black=1} 1/2-1/2

[Event "9th Porticcio Open 2024"]
[Site "Porticcio"]
[Date "2024.07.01"]
[Round "4.7"]
[White "De Balmann, Marc"]
[Black "Lagarde, Maxime"]
[Result "0-1"]
[ECO "E94"]
[WhiteElo "2194"]
[BlackElo "2604"]
[Annotator "TA"]
[PlyCount "122"]
[EventDate "2024.07.01"]
[EventType "swiss"]
[EventCountry "FRA"]
[SourceTitle "playchess.com"]
[Source "ChessBase"]
[SourceQuality "1"]
[TimeControl "5400+30"]

{[%evp 28,122,115,121,125,100,125,118,106,112,207,177,186,115,119,88,161,98,173,114,129,122,126,77,116,108,134,16,15,10,24,-17,-12,-12,0,-2,-2,-13,-18,-93,-93,-104,-85,-110,0,0,0,0,0,-111,-114,-73,-33,-99,-115,-99,-83,-80,-85,-80,0,-101,-102,-108,0,-143,-156,-170,-161,-234,-239,-538,-522,-441,-380,-425,-400,-362,-365,-508,-455,-542,-403,-843,-780,-865,-860,-1035,-904,-1318,-1154,-5616,-12837,-6161,-5176,-29982,-29982]} 1. d4 {[%emt 0:00:03]} Nf6 {[%emt 0:00:21]} 2. c4 {[%emt 0:00:05]} g6 {[%emt 0:00:12]} 3. Nc3 {[%emt 0:00:07]} Bg7 {[%emt 0:00:04]} 4. e4 {[%emt 0:00:05]} d6 {[%emt 0:00:04]} 5. Nf3 {[%emt 0:00:08]} O-O {[%emt 0:00:07]} 6. Be2 {[%emt 0:00:05]} Nbd7 {[%emt 1:32:42]} 7. O-O {[%emt 0:00:12]} e5 {[%emt 0:00:00]} 8. Be3 {[%emt 0:00:11]} c6 {[%emt 0:00:00]} 9. d5 {[%emt 0:01:16]} Ng4 {[%emt 0:00:00]} 10. Bg5 {[%emt 0:01:29]} f6 {[%emt 0:00:00]} 11. Bd2 {[%emt 0:01:41]} c5 {[%emt 0:00:00] E94: King's Indian: Classical: 6 Be2 e5 7 0-0: Various Black 7th moves.} 12. Qc1 {[%emt 0:05:48]} f5 {[%emt 0:00:00]} 13. Ng5 {[%emt 0:02:48]} Ndf6 {[%emt 0:00:00]} 14. exf5 {[%emt 0:08:45]} gxf5 {[%emt 0:00:00]} 15. f3 $146 {[%emt 0:00:48]} ({Predecessor:} 15. h3 Nh6 16. Ne6 Bxe6 17. Bxh6 Bd7 18. Bxg7 Kxg7 19. f4 Qe7 20. Qd2 Kh8 21. Rae1 {0-1 Carlhammar,M (2245)-Vogt,L (2485) Rilton Cup 18th 1988}) 15... Nh6 {[%emt 0:00:00]} 16. Bd3 {[%emt 0:03:00]} f4 {[%emt 0:00:00]} 17. Ne6 {[%emt 0:13:04]} Bxe6 {[%emt 0:00:00]} 18. dxe6 {[%emt 0:00:34]} Re8 {[%emt 0:00:00]} (18... Kh8 $16) 19. g4 $18 {[%emt 0:08:26]} Rxe6 {[%emt 0:00:00]} 20. Qc2 {[%emt 0:03:40]} (20. g5 $18 Nh5 21. gxh6 Qg5+ 22. Kf2 (22. Kh1 {leads to mate.} Ng3+ 23. Kg1 Ne4+ 24. Kh1 Rg6 25. hxg7 Qg2#) 22... Qh4+ 23. Ke2 Qxh2+ 24. Kd1 Rxh6 25. Kc2) 20... Nf7 $16 {[%emt 0:00:00]} 21. Be1 {[%emt 0:10:11]} h6 {[%emt 0:00:00]} (21... e4 $16 22. Nxe4 Nxe4) 22. Rd1 {[%emt 0:01:23]} (22. Bg6 $18) 22... a6 {[%emt 0:00:00]} (22... e4 $16 {was worth a try.} 23. Nxe4 Qe7) 23. a4 {[%emt 0:01:41]} (23. Bf5 $18 Re7 24. Bh4) 23... Qf8 {[%emt 0:00:00]} 24. Qg2 {[%emt 0:02:48]} Nd8 {[%emt 0:00:00]} 25. Nd5 {[%emt 0:03:51]} (25. Bf5 $142) 25... Nxd5 {[%emt 0:00:00]} 26. cxd5 {[%emt 0:00:03]} Re7 {[%emt 0:00:00]} 27. Qe2 {[%emt 0:03:19]} (27. g5 $1 $16) 27... e4 {[%emt 0:00:00]} 28. Bxe4 {[%emt 0:01:07]} Nf7 {[%emt 0:00:00]} 29. Bh4 {[%emt 0:02:26]} Ng5 {[%emt 0:00:00]} 30. Kh1 {[%emt 0:05:19]} Rae8 {[%emt 0:00:00]} 31. Bxg5 {[%emt 0:02:06]} hxg5 {[%emt 0:00:00]} 32. h4 {[%emt 0:00:35]} gxh4 {[%emt 0:00:00]} 33. g5 {[%emt 0:00:01]} (33. Qh2 $11) 33... Qf5 $17 {[%emt 0:00:00]} 34. Rde1 {[%emt 0:06:02]} Qh3+ $1 {[%emt 0:00:00]} ({Much worse is} 34... Qxg5 $6 35. Rg1 Qh6 36. Rg4 $11) 35. Qh2 {[%emt 0:00:02]} Qxh2+ {[%emt 0:00:00]} (35... Qg3 $1 $17 {Threatens to win with ...h3.} 36. Rg1 Qxh2+ 37. Kxh2 Bxb2) 36. Kxh2 $11 {[%emt 0:00:01]} Bxb2 {[%emt 0:00:00]} 37. Rb1 $1 {[%emt 0:00:23]} Be5 {[%emt 0:00:00]} 38. Rfc1 {[%emt 0:01:41]} (38. Kh3 $11 {keeps the balance.}) 38... Rg7 $1 $17 {[%emt 0:00:00]} 39. g6 {[%emt 0:00:08]} Rc7 {[%emt 0:00:00]} 40. Rc4 {[%emt 0:00:21]} (40. Kh3 $15) 40... Kg7 $17 {[%emt 0:00:00]} 41. Kh3 {[%emt 0:00:11]} Rh8 {[%emt 0:00:00]} 42. a5 {[%emt 0:01:58]} Kf6 {[%emt 0:00:00]} 43. Rg1 {[%emt 0:01:56]} Rb8 {[%emt 0:00:00]} ({Black should try} 43... Bd4 $1 $17 {[%cal Rd4g1]} 44. Rg4 Be5) 44. Rb1 {[%emt 0:01:41]} (44. Rg4 $11) 44... Bd4 $17 {[%emt 0:00:00]} 45. Kg4 {[%emt 0:00:58]} Ke5 {[%emt 0:00:00]} (45... Rg8 $17 46. Rh1 Rh7) 46. Rb6 {[%emt 0:03:27]} (46. Rd1 $11 {remains equal.} b5 47. axb6) 46... Rh8 $1 $17 {[%emt 0:00:00]} 47. Kh3 {[%emt 0:00:48] [#]} Rh5 $1 {[%emt 0:00:00]} 48. Rb1 {[%emt 0:00:38] [#]} (48. Rc1 $142 Rh6 49. Rcb1) 48... Rg5 $1 $19 {[%emt 0:00:00]} 49. Rd1 $2 {[%emt 0:02:26]} (49. Ra4) 49... Rg3+ {[%emt 0:00:00]} 50. Kh2 {[%emt 0:00:31]} Rg7 {[%emt 0:00:00]} 51. Rc2 {[%emt 0:00:38]} R7xg6 {[%emt 0:00:00]} 52. Bxg6 {[%emt 0:00:03]} Rxg6 {[%emt 0:00:00]} 53. Rb1 {[%emt 0:00:19]} Kxd5 {[%emt 0:00:00]} 54. Rxb7 {[%emt 0:00:11]} c4 {[%emt 0:00:00]} 55. Kh3 {[%emt 0:01:18]} (55. Rc7 $142 c3 56. R2xc3) 55... c3 $19 {[%emt 0:00:00]} 56. Rc7 {[%emt 0:01:17]} Rg3+ {[%emt 0:00:00]} 57. Kxh4 {[%emt 0:00:08]} Rxf3 {[%emt 0:00:00]} 58. Kg4 {[%emt 0:00:16]} Ke4 {[%emt 0:00:00]} 59. Ra2 {[%emt 0:03:43]} Rg3+ {[%emt 0:00:00]} 60. Kh5 {[%emt 0:00:27]} f3 {[%emt 0:00:00]} 61. Rf7 {[%emt 0:00:47]} f2 {[%emt 0:00:00]} 0-1